bitfinex/quotes_SOLUSD_20260208
["timestamp","ask_amount","ask_price","bid_price","bid_amount"]
[1770515681524,3.36996411,88.059,88.025,3.34187714]
[1770515681729,3.36996411,88.059,88.027,11.36010849]
[1770515683035,3.36996411,88.057,88.027,11.36010849]
[1770515683216,3.36996411,88.057,88.028,3.34187714]
[1770515683545,3.96900761,88.05,88.021,3.34187714]
[1770515683734,3.36996411,88.049,88.021,3.34187714]
[1770515689148,3.36996411,88.058,88.023,3.34187714]
[1770515689438,3.36996411,88.058,88.031,3.34187714]
[1770515692148,3.36996411,88.049,88.021,3.34187714]
[1770515694824,3.36996411,88.047,88.011,3.34187714]
[1770515695842,3.36996411,88.047,88.013,3.34187714]
[1770515696052,3.36996411,88.047,88.021,3.34187714]
[1770515698144,3.36996411,88.047,88.022,11.36079616]
[1770515698348,3.36996411,88.047,88.023,3.34187714]
[1770515701049,3.36996411,88.047,88.025,3.34187714]
[1770515701348,3.36996411,88.047,88.031,3.34187714]
[1770515702152,3.36996411,88.047,88.032,11.35950563]
[1770515702330,3.36996411,88.047,88.033,3.34187714]
[1770515703646,3.36996411,88.047,88.021,3.34187714]
[1770515703850,3.36996411,88.047,88.029,11.35987405]
[1770515704255,3.36996411,88.047,88.026,3.34187714]
[1770515704455,3.36996411,88.047,88.027,14.702028]
[1770515704953,3.36996411,88.047,88.027,3.34187714]
[1770515705150,3.36996411,88.047,88.022,3.34187714]
[1770515705665,3.97045658,88.04,88.011,3.42960841]
[1770515705847,3.59458913,88.029,88.0,3.42960841]
[1770515706156,3.59458913,88.029,88.011,3.42960841]
[1770515706466,3.59458913,88.046,88.013,3.42960841]
[1770515706638,3.59458913,88.046,88.021,3.42960841]
[1770515707745,28.38677233,88.07,88.021,3.42960841]
[1770515707746,3.59458913,88.059,88.021,3.42960841]
[1770515708264,3.59458913,88.059,88.031,3.42960841]
[1770515708448,3.59458913,88.059,88.033,3.42960841]
[1770515708852,3.59458913,88.065,88.041,3.42960841]
[1770515710996,3.59458913,88.065,88.031,3.42960841]
[1770515711144,3.59458913,88.059,88.025,3.42960841]
[1770515711658,3.59458913,88.039,88.005,3.42960841]
[1770515711843,3.59458913,88.029,87.999,3.42960841]
[1770515712757,3.59458913,88.029,87.99,3.97045658]
[1770515712758,3.59458913,88.029,88.001,3.42960841]
[1770515713351,3.43814089,88.028,88.001,3.42960841]
[1770515714058,3.43814089,88.009,87.968,3.45356337]
[1770515714269,3.43814089,88.009,87.968,14.82127507]
[1770515714462,3.43814089,87.999,87.968,14.82127507]
[1770515714767,3.43814089,87.999,87.972,11.36716449]
[1770515714941,3.43814089,88.005,87.977,3.45356337]
[1770515716248,3.43814089,88.005,87.979,3.45356337]
[1770515717653,3.43814089,88.011,87.981,3.45356337]
[1770515719245,3.43814089,88.011,87.983,3.45356337]
[1770515719447,3.43814089,88.019,87.983,3.45356337]
[1770515719767,3.43814089,88.019,87.991,3.45356337]
[1770515719970,3.43814089,88.029,87.991,3.45356337]
[1770515720466,3.43814089,88.033,88.001,3.45356337]
[1770515721353,3.43814089,88.031,87.999,3.45356337]
[1770515721553,3.43814089,88.029,87.999,3.45356337]
[1770515722071,3.43814089,88.029,87.991,3.45356337]
[1770515722276,3.43814089,87.999,87.976,104.03565295]
[1770515722568,3.43814089,87.989,87.976,104.03565295]
[1770515722757,3.43814089,88.009,87.976,104.03565295]
[1770515723179,5.13032502,88.027,87.976,104.03565295]
[1770515723180,3.43814089,87.999,87.976,104.03565295]
[1770515724043,3.43814089,87.999,87.976,118.85590252]
[1770515725470,3.43814089,88.015,87.981,3.45356337]
[1770515726456,3.43814089,88.015,87.981,14.8195803]
[1770515726658,3.43814089,88.015,87.982,3.45356337]
[1770515729674,3.43814089,88.015,87.991,3.45356337]
[1770515731782,3.43814089,88.015,87.991,14.81835599]
[1770515733667,3.43814089,88.015,87.992,3.45356337]
[1770515734170,7.47532254,88.017,87.992,3.45356337]
[1770515734482,3.43814089,88.016,87.992,3.45356337]
[1770515734866,2.97926655,88.017,87.99,3.97045658]
[1770515735066,3.59694066,88.039,88.0,3.97045658]
[1770515735671,3.59694066,88.037,87.99,3.97045658]
[1770515737288,3.59694066,88.035,87.991,11.36479867]
[1770515738679,3.59694066,88.033,88.01,3.97045658]
[1770515740877,3.59694066,88.033,87.978,56.83236786]
[1770515740878,3.59694066,88.054,88.02,3.97045658]
[1770515741483,3.59694066,88.052,88.02,3.97045658]
[1770515742582,3.59694066,88.052,88.011,39.76775629]
[1770515743785,3.59694066,88.05,88.02,3.97045658]
[1770515746886,11.3573124,88.049,87.996,56.82037847]
[1770515747089,3.59694066,88.048,88.01,3.97045658]
[1770515749192,3.59694066,88.048,88.011,11.36221608]
[1770515749489,3.59694066,88.047,88.011,11.36221608]
[1770515752489,3.59694066,88.047,88.02,3.97045658]
[1770515753087,3.59694066,88.055,88.02,3.97045658]
[1770515753287,3.59694066,88.055,88.03,3.97045658]
[1770515754194,3.59694066,88.063,88.03,3.97045658]
[1770515754400,3.59694066,88.063,88.04,3.97045658]
[1770515755397,3.59694066,88.058,88.04,3.97045658]
[1770515757598,3.59694066,88.058,88.04,3.96869965]
[1770515758701,3.59694066,88.058,88.041,11.3583444]
[1770515759502,3.59694066,88.07,88.041,11.3583444]
[1770515762904,3.59694066,88.07,88.002,56.81644813]
[1770515762905,3.59694066,88.058,88.036,11.3589753]
[1770515763900,3.59694066,88.058,88.03,3.96869965]
[1770515763901,3.59694066,88.057,88.026,11.36026028]
[1770515764107,3.59694066,88.057,88.031,11.35962153]
[1770515764907,3.59694066,88.057,88.0,3.96869965]
[1770515764908,3.96869965,88.04,87.995,28.41049984]
[1770515765204,3.96869965,88.04,87.91,47.16126483]
[1770515765205,3.59694066,88.009,87.981,11.3660904]
[1770515765388,3.59694066,88.009,87.976,115.40232695]
[1770515765589,3.59694066,88.009,87.976,104.03565295]
[1770515766120,3.59694066,87.999,87.976,104.03565295]
[1770515766309,3.59694066,87.989,87.976,104.03565295]
[1770515766688,3.59694066,87.989,87.96,0.2]
[1770515766891,11.36647798,87.978,87.96,0.2]
[1770515767089,3.47820992,87.977,87.96,0.2]
[1770515768202,3.47820992,87.969,87.942,11.37103053]
[1770515768409,3.47820992,87.969,87.94,0.2]
[1770515769204,3.47820992,87.959,87.94,0.2]
[1770515770722,3.47820992,87.957,87.94,0.2]
[1770515770897,3.47820992,87.949,87.93,0.2]
[1770515772418,3.47820992,87.949,87.93,4.16869965]
[1770515773213,3.47820992,87.949,87.93,0.2]
[1770515773597,3.47820992,87.949,87.93,4.16869965]
[1770515773924,3.3673339,87.956,87.931,3.59476163]
[1770515774292,3.3673339,87.956,87.94,3.96869965]
[1770515775196,3.3673339,87.956,87.932,3.59476163]
[1770515775403,3.3673339,87.956,87.93,4.16869965]
[1770515775610,3.3673339,87.956,87.93,0.2]
[1770515776210,3.3673339,87.956,87.93,4.16869965]
[1770515777504,3.3673339,87.956,87.931,3.59476163]
[1770515778102,3.3673339,87.956,87.94,3.96869965]
[1770515778415,7.47798496,87.962,87.941,3.59476163]
[1770515779797,7.47798496,87.962,87.95,3.96869965]
[1770515780800,7.47798496,87.962,87.946,3.59476163]
[1770515782921,3.3673339,87.982,87.951,1.70382964]
[1770515783222,3.3673339,87.982,87.96,3.96869965]
[1770515783420,3.3673339,87.982,87.951,1.70382964]
[1770515783421,3.3673339,87.969,87.93,0.2]
[1770515783718,3.3673339,87.969,87.934,11.3720374]
[1770515784422,3.3673339,87.969,87.934,13.08166267]
[1770515784930,3.3673339,87.967,87.934,1.70962527]
[1770515785105,3.3673339,87.967,87.93,4.16869965]
[1770515786924,3.3673339,87.967,87.93,0.2]
[1770515787130,3.3673339,87.965,87.93,4.16869965]
[1770515788720,3.3673339,87.963,87.932,1.7188717]
[1770515789024,3.3673339,87.963,87.94,3.96869965]
[1770515789821,7.36429525,87.973,87.951,1.71966273]
[1770515790021,3.96869965,87.97,87.931,11.37255347]
[1770515790225,3.3673339,87.969,87.931,13.0922162]
[1770515791017,3.3673339,87.967,87.93,4.16869965]
[1770515792432,3.3673339,87.967,87.94,3.96869965]
[1770515794828,3.3673339,87.967,87.941,1.72348369]
[1770515795623,3.53732926,87.965,87.934,1.72495134]
[1770515795817,3.53732926,87.965,87.94,3.96869965]
[1770515799335,7.35548503,87.972,87.934,13.09707612]
[1770515799336,3.53732926,87.963,87.934,1.72495134]
[1770515801937,3.53732926,87.963,87.941,1.72915619]
[1770515802617,3.53732926,87.97,87.941,1.72915619]
[1770515802817,3.53732926,87.97,87.95,3.96869965]
[1770515804241,3.53732926,87.97,87.951,1.73049428]
[1770515804628,3.53732926,87.97,87.96,3.96869965]
[1770515806237,3.53732926,87.97,87.951,1.73049428]
[1770515810843,3.53732926,87.97,87.95,3.96869965]
[1770515811227,3.53732926,87.97,87.951,1.73494145]
[1770515811844,3.53732926,87.971,87.96,3.96869965]
[1770515812141,3.53732926,87.971,87.951,1.73494145]
[1770515815344,3.53732926,87.969,87.93,4.16869965]
[1770515816342,11.36777009,87.968,87.93,4.16869965]
[1770515816549,3.53732926,87.967,87.93,4.16869965]
[1770515817044,3.53732926,87.967,87.931,13.11103077]
[1770515817231,3.53732926,87.967,87.941,1.7384773]
[1770515817638,3.53732926,87.967,87.94,3.96869965]
[1770515819551,3.53732926,87.967,87.94,3.97778437]
[1770515820649,3.53732926,87.967,87.936,1.73904314]
[1770515821235,3.53732926,87.965,87.936,1.73904314]
[1770515821948,3.53732926,87.965,87.93,0.2]
[1770515822155,3.53732926,87.959,87.92,0.2]
[1770515823155,3.53732926,87.949,87.92,0.2]
[1770515824350,3.53732926,87.947,87.92,4.17778437]
[1770515824534,3.53732926,87.947,87.921,1.7428262]
[1770515826255,3.36294443,87.945,87.921,1.7428262]
[1770515826460,3.36294443,87.945,87.856,3.3963782]
[1770515826636,3.36294443,87.945,87.8,0.2]
[1770515826637,5.13032502,87.917,87.871,3.3963782]
[1770515826830,1.63065332,87.916,87.871,3.3963782]
[1770515827036,1.63065332,87.916,87.84,4.17778437]
[1770515827037,1.63065332,87.916,87.88,3.97778437]
[1770515827356,1.63065332,87.916,87.877,3.3963782]
[1770515828353,35.56707571,87.919,87.916,1.63065332]
[1770515828554,32.15707571,87.919,87.91,3.97778437]
[1770515828761,32.15707571,87.919,87.911,3.3963782]
[1770515831746,32.15707571,87.919,87.91,2.20155888]
[1770515832654,32.15707571,87.919,87.881,39.82658366]
[1770515832852,32.15707571,87.919,87.91,3.97778437]
[1770515833860,32.15707571,87.919,87.91,7.58675143]
[1770515835064,32.15707571,87.919,87.911,3.60896706]
[1770515835360,32.15707571,87.919,87.911,2.21013086]
[1770515835567,32.15707571,87.919,87.911,0.19580673]
[1770515835958,3.29950138,87.918,87.9,3.97778437]
[1770515836267,10.62774256,87.918,87.9,3.97778437]
[1770515836462,7.32565174,87.917,87.9,3.97778437]
[1770515836659,3.29950138,87.916,87.89,3.97778437]
[1770515836863,3.29950138,87.915,87.89,3.97778437]
[1770515837159,3.29950138,87.914,87.89,3.97778437]
[1770515837364,10.6503276,87.914,87.89,3.97778437]
[1770515837555,7.3444107,87.913,87.891,3.60896706]
[1770515838471,3.29950138,87.912,87.891,3.60896706]
[1770515838666,10.64492502,87.912,87.891,3.60896706]
[1770515838869,3.29950138,87.91,87.88,3.97778437]
[1770515839164,3.29950138,87.909,87.877,11.37948702]
[1770515839370,3.29950138,87.908,87.877,11.37948702]
[1770515840066,3.29950138,87.907,87.877,11.37948702]
[1770515840254,7.39725056,87.907,87.877,11.37948702]
[1770515840455,3.29950138,87.906,87.877,11.37948702]
[1770515840645,3.29950138,87.905,87.877,11.37948702]
[1770515840846,3.29950138,87.904,87.877,11.37948702]
[1770515841148,3.29950138,87.902,87.877,11.37948702]
[1770515841349,3.29950138,87.9,87.877,11.37948702]
[1770515841567,3.29950138,87.898,87.877,11.37948702]
[1770515841863,1.92944631,87.897,87.877,11.37948702]
[1770515842074,1.92944631,87.897,87.88,3.97778437]
[1770515842568,1.92944631,87.897,87.88,7.58675143]
[1770515842870,1.92944631,87.897,87.89,7.58675143]
[1770515843372,1.92944631,87.897,87.89,3.60896706]
[1770515843570,1.92944631,87.897,87.891,3.60896706]
[1770515843766,7.32278895,87.913,87.891,3.60896706]
[1770515844455,3.29950138,87.912,87.891,3.60896706]
[1770515844656,3.29950138,87.911,87.891,3.60896706]
[1770515844863,3.29950138,87.909,87.891,3.60896706]
[1770515845069,1.15766779,87.908,87.891,3.60896706]
[1770515848981,1.15766779,87.908,87.893,3.60896706]
[1770515849282,0.54037281,87.91,87.893,3.60896706]
[1770515849882,0.54037281,87.91,87.895,3.60896706]
[1770515852881,0.54037281,87.91,87.897,3.60896706]
[1770515857978,7.32484864,87.925,87.911,3.37977832]
[1770515860371,7.32484864,87.925,87.913,3.37977832]
[1770515866694,7.32484864,87.925,87.915,3.37977832]
[1770515866897,3.27365822,87.94,87.916,3.37977832]
[1770515872081,3.27365822,87.938,87.91,3.97778437]
[1770515872500,3.27365822,87.938,87.908,3.37977832]
[1770515873397,3.27365822,87.938,87.91,3.97778437]
[1770515873594,3.27365822,87.938,87.91,7.35756269]
[1770515875682,3.27365822,87.938,87.911,3.37977832]
[1770515877202,3.27365822,87.936,87.911,3.37977832]
[1770515879606,3.27365822,87.919,87.871,3.37977832]
[1770515880105,3.27365822,87.919,87.881,3.37977832]
[1770515881704,14.64789326,87.919,87.882,11.37889442]
[1770515881905,3.27365822,87.918,87.883,3.37977832]
[1770515884106,3.27365822,87.918,87.885,3.37977832]
[1770515884607,3.27365822,87.916,87.885,3.37977832]
[1770515884780,3.27365822,87.914,87.885,3.37977832]
[1770515884986,3.27365822,87.912,87.885,3.37977832]
[1770515885299,0.72100001,87.911,87.886,14.75815485]
[1770515885616,3.27365822,87.91,87.886,14.75815485]
[1770515885800,3.44044822,87.908,87.886,14.75815485]
[1770515885988,3.44044822,87.906,87.886,14.75815485]
[1770515886306,3.44044822,87.904,87.886,14.75815485]
[1770515886606,4.16144823,87.904,87.886,14.75815485]
[1770515887105,4.16144823,87.904,87.887,3.44263978]
[1770515889406,3.44044822,87.902,87.875,3.44263978]
[1770515889609,3.44044822,87.9,87.875,14.82242885]
[1770515889818,3.44044822,87.898,87.876,3.44263978]
[1770515889998,3.98014719,87.92,87.858,28.45496499]
[1770515889999,4.16144823,87.897,87.88,7.42278697]
[1770515890504,4.16144823,87.897,87.881,3.44263978]
[1770515907514,0.72100001,87.897,87.89,7.28135741]
[1770515907822,0.72100001,87.897,87.886,3.30121022]
[1770515909921,3.48474807,87.901,87.886,3.30121022]
[1770515911516,3.48474807,87.901,87.881,3.30121022]
[1770515913196,3.48474807,87.901,87.882,3.30121022]
[1770515913403,3.48474807,87.899,87.882,3.30121022]
[1770515913718,10.77730045,87.899,87.882,3.30121022]
[1770515913921,10.77818412,87.898,87.882,3.30121022]
[1770515914120,7.29728532,87.897,87.882,3.30121022]
[1770515914918,10.78203339,87.897,87.882,3.30121022]
[1770515915717,3.37820696,87.907,87.891,3.43228667]
[1770515916920,3.37820696,87.907,87.89,3.98014719]
[1770515917705,3.37820696,87.907,87.891,11.37772923]
[1770515919124,3.37820696,87.907,87.894,3.43228667]
[1770515919434,7.30402145,87.91,87.894,3.43228667]
[1770515919608,3.37820696,87.909,87.894,3.43228667]
[1770515920823,7.30402145,87.91,87.9,3.98014719]
[1770515921024,3.37820696,87.93,87.902,3.43228667]
[1770515921209,7.31257636,87.931,87.911,3.43228667]
[1770515921409,10.69078332,87.931,87.911,3.43228667]
[1770515922016,7.3163279,87.93,87.911,3.43228667]
[1770515923522,7.3163279,87.93,87.912,11.37501137]
[1770515923736,7.3163279,87.93,87.913,3.43228667]
[1770515925018,7.3163279,87.93,87.914,11.37475259]
[1770515925217,7.3163279,87.93,87.915,3.43228667]
[1770515926329,7.3163279,87.93,87.916,14.8067805]
[1770515926624,7.3163279,87.93,87.917,3.43228667]
[1770515928332,7.3163279,87.93,87.918,11.37423508]
[1770515929724,7.3163279,87.93,87.92,3.98014719]
[1770515929921,10.69453486,87.93,87.92,3.98014719]
[1770515934042,7.38612854,87.947,87.921,11.37384697]
[1770515934437,7.38612854,87.947,87.926,3.43228667]
[1770515934738,7.38612854,87.947,87.92,7.41243386]
[1770515935541,7.38612854,87.947,87.921,3.43228667]
[1770515935842,3.37820696,87.939,87.862,56.90710647]
[1770515936141,3.37820696,87.937,87.89,3.98014719]
[1770515936318,11.37190684,87.936,87.89,3.98014719]
[1770515936522,3.37820696,87.934,87.891,11.37772923]
[1770515936718,3.37820696,87.933,87.891,11.37772923]
[1770515937019,3.37820696,87.932,87.891,11.37772923]
[1770515937217,3.98014719,87.93,87.891,11.37772923]
[1770515937441,3.37820696,87.928,87.891,11.37772923]
[1770515937843,3.37820696,87.928,87.892,3.43228667]
[1770515938846,3.37820696,87.928,87.894,3.43228667]
[1770515939053,3.37820696,87.926,87.894,3.43228667]
[1770515939943,3.37820696,87.926,87.896,3.43228667]
[1770515940242,3.37820696,87.926,87.9,3.98014719]
[1770515940632,3.37820696,87.925,87.9,3.98014719]
[1770515940833,3.37820696,87.924,87.9,3.98014719]
[1770515941044,10.77232657,87.924,87.9,3.98014719]
[1770515941229,3.37820696,87.922,87.9,3.98014719]
[1770515941429,3.37820696,87.922,87.9,3.9810175]
[1770515941725,3.37820696,87.922,87.9,7.41330417]
[1770515942044,7.39720244,87.923,87.911,3.43228667]
[1770515944230,7.39720244,87.923,87.913,3.43228667]
[1770515944439,7.39720244,87.923,87.912,11.37501137]
[1770515944440,3.37820696,87.947,87.914,3.43228667]
[1770515944642,3.37820696,87.952,87.94,3.9810175]
[1770515945030,7.417989,87.955,87.94,7.41330417]
[1770515945350,3.37820696,87.954,87.94,7.41330417]
[1770515945548,3.37820696,87.954,87.94,3.9810175]
[1770515945844,3.37820696,87.954,87.931,11.37246645]
[1770515946047,3.37820696,87.954,87.931,14.74412348]
[1770515946549,3.41508651,87.954,87.941,3.37165703]
[1770515946847,3.41508651,87.954,87.941,14.7429173]
[1770515947831,7.417989,87.955,87.942,3.37165703]
[1770515948328,7.417989,87.955,87.943,11.37100167]
[1770515948748,7.417989,87.955,87.944,3.37165703]
[1770515949941,7.417989,87.955,87.94,3.9810175]
[1770515949942,7.417989,87.955,87.94,7.35267453]
[1770515950148,7.417989,87.955,87.941,3.37165703]
[1770515953055,3.34687964,87.954,87.936,3.27934579]
[1770515955258,3.34687964,87.954,87.94,3.9810175]
[1770515958244,3.34687964,87.954,87.94,7.26036329]
[1770515959557,3.34687964,87.954,87.941,3.27934579]
[1770515959754,3.34687964,87.964,87.943,3.27934579]
[1770515960337,3.34687964,87.964,87.95,3.9810175]
[1770515960873,3.34687964,87.964,87.95,15.35106898]
[1770515961538,3.34687964,87.975,87.95,18.63041477]
[1770515961739,3.34687964,87.974,87.95,18.63041477]
[1770515962240,3.34687964,87.974,87.961,3.27934579]
[1770515962639,3.34687964,87.974,87.96,3.9810175]
[1770515963566,3.34687964,87.974,87.96,15.3497423]
[1770515964871,3.34687964,87.972,87.934,3.27934579]
[1770515965157,3.34687964,87.97,87.946,11.37060007]
[1770515965357,3.34687964,87.97,87.951,3.27934579]
[1770515965757,3.34687964,87.97,87.954,11.36955639]
[1770515965950,3.34687964,87.985,87.961,3.27934579]
[1770515966140,3.34687964,87.985,87.97,3.9810175]
[1770515966965,3.34687964,87.985,87.968,3.27934579]
[1770515967664,3.34687964,87.985,87.963,3.27934579]
[1770515970448,3.34687964,87.985,87.97,3.9810175]
[1770515970649,3.34687964,87.985,87.964,3.27934579]
[1770515974256,3.34687964,87.985,87.966,3.27934579]
[1770515975969,3.34687964,87.985,87.965,11.36815779]
[1770515975970,3.34687964,87.985,87.963,3.28849921]
[1770515981969,3.34687964,87.985,87.964,11.36828702]
[1770515982273,3.34687964,87.985,87.965,3.28849921]
[1770515990378,3.29555521,87.983,87.965,3.28849921]
[1770515992484,3.29555521,87.983,87.96,3.28849921]
[1770515999185,3.29555521,87.983,87.961,11.36867475]
[1770515999477,3.29555521,87.983,87.962,3.28849921]
[1770516000763,3.29555521,87.983,87.964,3.28849921]
[1770516001584,7.46778752,87.987,87.971,3.28849921]
[1770516002163,3.29555521,87.986,87.971,3.28849921]
[1770516002365,3.29555521,87.986,87.951,3.28849921]
[1770516002670,3.29555521,87.977,87.931,3.28849921]
[1770516003368,3.29555521,87.977,87.94,3.97746294]
[1770516003567,3.29555521,87.977,87.941,3.28849921]
[1770516003887,3.29555521,87.977,87.92,3.97746294]
[1770516003888,3.29555521,87.983,87.951,3.28849921]
[1770516005174,3.29555521,87.983,87.961,3.28849921]
[1770516005682,3.29555521,87.983,87.962,3.29551888]
[1770516006884,0.72100001,87.986,87.964,3.29551888]
[1770516007186,0.72100001,87.986,87.971,3.29551888]
[1770516008570,0.72100001,87.986,87.963,11.36841626]
[1770516008571,3.29877653,87.997,87.981,3.29551888]
[1770516008975,3.29877653,87.997,87.981,14.66152187]
[1770516009172,10.82082657,88.001,87.982,3.29551888]
[1770516010087,10.82082657,88.001,87.976,28.41681909]
[1770516010088,3.29877653,88.0,87.977,3.29551888]
[1770516010886,3.29877653,87.998,87.972,3.29551888]
[1770516011574,3.29877653,87.996,87.972,3.29551888]
[1770516011778,3.29877653,87.995,87.972,3.29551888]
[1770516011974,3.29877653,87.994,87.972,3.29551888]
[1770516012767,3.29877653,87.993,87.972,3.29551888]
[1770516012986,7.53330665,87.993,87.972,3.29551888]
[1770516013178,3.29877653,87.992,87.972,3.29551888]
[1770516013697,3.1831806,87.991,87.972,3.29551888]
[1770516014566,3.1831806,87.991,87.974,3.33531547]
[1770516015667,7.53967168,87.992,87.974,3.33531547]
[1770516016382,7.53967168,87.992,87.976,3.33531547]
[1770516017898,7.53967168,87.992,87.981,3.33531547]
[1770516019994,7.53967168,87.992,87.982,11.36596121]
[1770516020197,7.53967168,87.992,87.983,3.33531547]
[1770516020411,3.1831806,88.006,87.985,3.33531547]
[1770516020703,3.3831806,88.01,87.991,3.33531547]
[1770516022707,3.1831806,87.999,87.971,3.33531547]
[1770516023080,3.1831806,87.998,87.971,3.33531547]
[1770516025096,3.1831806,87.997,87.971,3.33531547]
[1770516025409,3.1831806,87.996,87.963,3.33531547]
[1770516025588,3.1831806,87.995,87.963,3.33531547]
[1770516025902,3.1831806,87.994,87.963,3.33531547]
[1770516027483,3.1831806,87.994,87.965,3.33531547]
[1770516030311,3.1831806,87.994,87.967,3.33531547]
[1770516033002,3.1831806,87.994,87.968,11.36777009]
[1770516033208,3.1831806,87.994,87.969,3.33531547]
[1770516033803,7.54536084,87.995,87.981,3.33531547]
[1770516037209,7.54536084,87.995,87.982,3.15757634]
[1770516038320,3.36677529,87.994,87.966,3.15757634]
[1770516038897,3.36677529,87.994,87.923,5.13032502]
[1770516038898,3.36677529,87.992,87.923,5.13032502]
[1770516039092,3.36677529,87.992,87.85,4.17746294]
[1770516039093,3.97746294,87.93,87.85,4.17746294]
[1770516039393,7.76509339,87.991,87.854,5.93576548]
[1770516039394,5.13032502,87.897,87.854,5.93576548]
[1770516039626,36.35164584,87.836,87.83,0.1]
[1770516039795,4.908,87.831,87.79,3.64481414]
[1770516040125,13.71820221,87.83,87.79,4.17746294]
[1770516040313,20.93973377,87.839,87.8,15.56693627]
[1770516040508,3.4446559,87.869,87.82,3.97746294]
[1770516040815,3.97746294,87.87,87.82,3.97746294]
[1770516040816,18.97702228,87.868,87.821,116.84257707]
[1770516041113,3.4446559,87.849,87.8,44.04074037]
[1770516041292,3.4446559,87.839,87.8,0.2]
[1770516041497,7.42211884,87.83,87.8,0.2]
[1770516041800,3.97746294,87.82,87.8,0.2]
[1770516042012,3.4446559,87.819,87.8,0.2]
[1770516042224,10.79728311,87.818,87.8,0.2]
[1770516043808,10.79728311,87.818,87.801,11.38939192]
[1770516046120,7.36753251,87.833,87.801,11.38939192]
[1770516046425,7.36753251,87.833,87.81,3.97746294]
[1770516046608,7.36753251,87.833,87.801,11.38939192]
[1770516047509,3.97746294,87.86,87.81,3.97746294]
[1770516047718,3.4446559,87.858,87.801,39.86287172]
[1770516047923,0.72100001,87.857,87.81,3.97746294]
[1770516048127,0.72100001,87.857,87.82,3.97746294]
[1770516048607,4.16565591,87.857,87.821,0.02204443]
[1770516048806,0.72100001,87.856,87.821,0.02204443]
[1770516049725,0.72100001,87.856,87.822,0.02535368]
[1770516051114,0.72100001,87.856,87.801,0.02862493]
[1770516051115,3.4446559,87.839,87.801,0.02862493]
[1770516051306,3.4446559,87.839,87.805,11.38879655]
[1770516051506,3.4446559,87.839,87.806,0.02862493]
[1770516051909,3.4446559,87.829,87.805,11.38879655]
[1770516052114,3.4446559,87.839,87.806,0.0318586]
[1770516053421,3.4446559,87.837,87.806,0.0318586]
[1770516053628,3.4446559,87.829,87.8,0.2]
[1770516053822,3.4446559,87.819,87.8,0.2]
[1770516054611,4.16565591,87.824,87.8,0.2]
[1770516054927,3.4446559,87.809,87.79,0.2]
[1770516055429,3.4446559,87.799,87.79,0.2]
[1770516055734,3.4446559,87.799,87.78,0.2]
[1770516055912,3.4446559,87.797,87.78,0.2]
[1770516056234,3.4446559,87.797,87.77,0.2]
[1770516056235,4.16565591,87.797,87.77,0.2]
[1770516056408,3.4446559,87.795,87.77,0.2]
[1770516056608,0.72100001,87.796,87.77,0.2]
[1770516056609,3.4446559,87.793,87.773,11.39294953]
[1770516057624,3.4446559,87.793,87.77,0.2]
[1770516057625,3.4446559,87.814,87.782,0.05049541]
[1770516059135,3.4446559,87.814,87.79,10.68661821]
[1770516059633,3.4446559,87.814,87.788,0.05347787]
[1770516060517,0.72100001,87.817,87.791,0.05642609]
[1770516060931,0.72100001,87.817,87.8,10.68661821]
[1770516062436,3.4446559,87.858,87.811,0.06222131]
[1770516062634,1.02678706,87.857,87.83,10.68661821]
[1770516062838,3.4446559,87.856,87.824,0.06506909]
[1770516063643,3.4446559,87.856,87.83,10.68011338]
[1770516064139,3.4446559,87.856,87.831,11.3855017]
[1770516066146,3.4446559,87.856,87.824,0.06506909]
[1770516066716,3.4446559,87.839,87.8,10.68011338]
[1770516067026,3.4446559,87.837,87.801,0.07882481]
[1770516067228,3.4446559,87.835,87.801,0.07882481]
[1770516067829,14.12476928,87.83,87.801,0.07882481]
[1770516068454,3.4446559,87.829,87.801,0.07882481]
[1770516069154,1.02678706,87.828,87.782,0.08410845]
[1770516069338,3.4446559,87.827,87.782,0.08410845]
[1770516070036,3.4446559,87.834,87.801,0.08670484]
[1770516070642,3.4446559,87.834,87.802,0.0892714]
[1770516071153,10.64775101,87.843,87.811,0.0892714]
[1770516073455,3.4446559,87.842,87.812,0.09679558]
[1770516073659,3.4446559,87.839,87.811,11.38809488]
[1770516074834,3.4446559,87.839,87.811,39.85833209]
[1770516075039,7.20309511,87.843,87.821,3.3089169]
[1770516075545,7.20309511,87.843,87.822,11.38666848]
[1770516077246,7.20131713,87.866,87.831,3.3089169]
[1770516077450,1.02678706,87.865,87.831,3.3089169]
[1770516077645,56.41346611,87.958,87.85,13.98903028]
[1770516077864,7.20880072,87.884,87.851,3.3089169]
[1770516078050,10.68011338,87.88,87.833,3.3089169]
[1770516078254,10.68011338,87.88,87.841,3.3089169]
[1770516078756,7.20880072,87.884,87.851,3.3089169]
[1770516079147,3.21934606,87.879,87.851,3.3089169]
[1770516079581,3.21934606,87.879,87.853,3.3089169]
[1770516080661,3.21934606,87.879,87.854,11.382521]
[1770516082046,3.21934606,87.879,87.841,39.84471943]
[1770516082246,3.21934606,87.869,87.842,3.3089169]
[1770516084162,3.21934606,87.869,87.843,39.84381224]
[1770516084344,0.72100001,87.882,87.861,3.3089169]
[1770516086265,0.72100001,87.882,87.862,11.3814846]